bitfinex/quotes_ETHUSD_20250110
["timestamp","ask_amount","ask_price","bid_price","bid_amount"]
[1736491091688,5.88552334,3275.8,3275.2,0.03713886]
[1736491091892,0.55,3275.7,3275.2,0.03713886]
[1736491092092,0.55,3275.4,3275.1,0.8074]
[1736491092738,0.910297,3275.4,3274.6,0.223]
[1736491092893,0.55,3275.1,3274.4,0.8098]
[1736491093088,3.55,3275.1,3274.7,0.03680927]
[1736491093387,0.55,3274.9,3274.4,0.8098]
[1736491093647,0.55,3274.9,3274.5,0.03680927]
[1736491093792,0.55,3275.0,3274.5,0.03680927]
[1736491093999,0.55,3274.9,3274.5,0.03680927]
[1736491096090,3.60353,3274.9,3274.5,0.03680927]
[1736491097295,0.55,3274.9,3274.5,0.03680927]
[1736491098752,2.83280334,3274.9,3274.5,0.03680927]
[1736491099117,0.55,3274.6,3274.5,0.03680927]
[1736491099267,0.55,3274.5,3274.1,0.7512]
[1736491099650,0.55,3274.5,3274.2,0.03594025]
[1736491100580,3.60392,3274.5,3273.9,0.7666]
[1736491100781,3.60392,3274.5,3274.0,0.03594025]
[1736491101366,0.55,3274.3,3274.0,0.03594025]
[1736491101704,0.55,3274.5,3274.0,0.03594025]
[1736491102276,1.36128033,3274.5,3274.0,0.03594025]
[1736491102907,4.41526033,3274.5,3274.0,0.03594025]
[1736491105713,1.36128033,3274.5,3274.0,0.03594025]
[1736491105889,0.55,3274.2,3274.0,0.03594025]
[1736491106086,0.55,3274.4,3273.9,0.7666]
[1736491106302,0.99214837,3274.4,3273.9,0.7666]
[1736491106628,0.99214837,3274.4,3274.0,0.03698106]
[1736491107043,0.99214837,3274.4,3273.9,0.7666]
[1736491107242,4.04614837,3274.4,3273.9,0.7666]
[1736491107894,5.28,3274.7,3273.9,0.7666]
[1736491108226,5.28,3275.3,3274.4,3.05398]
[1736491108396,7.56280334,3275.3,3274.6,0.7571]
[1736491108597,7.56280334,3275.3,3274.7,0.03581303]
[1736491108821,0.55,3275.2,3274.7,0.03581303]
[1736491109544,4.16987833,3275.2,3274.7,0.03581303]
[1736491109704,4.16987833,3275.2,3274.6,0.7571]
[1736491109705,3.60338,3275.1,3274.6,0.7571]
[1736491111050,0.55,3274.9,3274.6,0.7571]
[1736491112006,3.0,3275.0,3274.5,0.223]
[1736491112007,0.55,3274.7,3274.5,0.223]
[1736491112208,0.910367,3274.7,3274.5,0.223]
[1736491112460,2.28280334,3275.0,3274.6,0.7796]
[1736491112640,0.55,3275.0,3274.6,0.7796]
[1736491113340,6.05336,3275.1,3274.6,0.7796]
[1736491113341,10.61598334,3275.3,3274.6,0.7796]
[1736491113743,0.55,3275.2,3274.7,0.03536687]
[1736491114647,7.56280334,3275.3,3274.7,0.03536687]
[1736491114947,0.55,3275.2,3274.7,0.03536687]
[1736491115944,3.60325,3275.2,3274.7,0.03536687]
[1736491119869,0.55,3275.0,3274.7,0.03536687]
[1736491120031,0.55,3274.7,3274.1,0.7863]
[1736491120231,0.55,3274.6,3274.1,0.7863]
[1736491120434,3.05355,3274.9,3274.2,0.03418797]
[1736491120641,5.28,3275.0,3274.3,0.7863]
[1736491120931,0.55,3274.9,3274.3,0.7863]
[1736491122728,0.55,3274.9,3274.4,0.03418797]
[1736491123047,0.55,3274.9,3274.3,0.7863]
[1736491123443,0.55,3274.9,3274.4,0.81978797]
[1736491126077,5.28,3275.0,3274.4,0.81978797]
[1736491126384,3.0,3275.6,3274.1,0.03053885]
[1736491126385,2.28280334,3275.6,3274.6,0.7908]
[1736491126563,5.33567334,3275.6,3274.6,0.7908]
[1736491126894,3.55,3275.5,3274.8,0.7549]
[1736491127487,5.28,3275.8,3274.9,0.03053372]
[1736491127647,5.28,3275.8,3275.1,0.7665]
[1736491127848,0.55,3275.7,3275.1,0.7665]
[1736491128287,0.55,3275.7,3275.2,0.03411041]
[1736491128785,0.55,3275.7,3275.1,0.7665]
[1736491128960,0.55,3275.7,3275.2,0.03411041]
[1736491129293,0.55,3275.7,3275.1,0.7665]
[1736491129482,0.55,3275.7,3275.3,0.03411041]
[1736491129685,0.55,3275.7,3275.1,0.7665]
[1736491130086,0.55,3275.7,3275.2,0.03411041]
[1736491130475,0.55,3275.7,3275.1,0.7665]
[1736491130962,0.55,3275.7,3275.2,0.0337549]
[1736491131164,0.55,3275.7,3275.1,0.7665]
[1736491131671,0.55,3275.7,3275.2,0.0337549]
[1736491131898,3.60306,3275.4,3275.2,0.0337549]
[1736491132098,3.60306,3275.4,3275.1,0.7665]
[1736491132501,2.28280334,3275.3,3275.2,0.03376783]
[1736491132920,2.28280334,3275.3,3274.9,1.0468]
[1736491132921,0.55,3275.2,3274.9,1.0468]
[1736491134026,0.55,3275.2,3275.0,0.03389709]
[1736491135431,3.60334,3275.1,3275.0,0.03389709]
[1736491135642,3.60334,3275.1,3274.9,0.223]
[1736491135818,3.60334,3275.1,3274.6,0.7852]
[1736491136134,3.60334,3275.1,3274.7,0.03366437]
[1736491136327,0.55,3275.1,3274.7,0.03366437]
[1736491138028,3.0,3275.6,3274.8,0.7569]
[1736491138218,5.28,3275.8,3274.8,0.78743287]
[1736491138419,3.0526,3275.9,3275.0,0.7569]
[1736491138621,3.0,3275.8,3275.0,0.7569]
[1736491138832,3.0,3275.8,3275.1,0.03371608]
[1736491139360,0.55,3275.7,3275.1,0.03371608]
[1736491139567,5.28280334,3275.8,3275.1,0.03371608]
[1736491140363,0.55,3275.7,3275.1,0.03371608]
[1736491141259,0.88855233,3275.7,3275.1,0.03371608]
[1736491141430,3.6029,3275.6,3275.0,0.7569]
[1736491141625,3.6029,3275.6,3275.1,0.03347048]
[1736491142331,3.0,3275.9,3275.2,0.7793]
[1736491142748,0.55,3275.8,3275.2,0.7793]
[1736491142950,0.55,3275.8,3275.3,0.03353511]
[1736491143384,0.55,3275.8,3275.2,0.7793]
[1736491143385,3.71580334,3275.8,3275.2,0.7793]
[1736491143689,0.55,3275.5,3274.5,0.7831]
[1736491144037,0.55,3275.5,3274.6,0.03350279]
[1736491144233,0.55,3275.4,3274.7,0.773]
[1736491144452,2.83280334,3275.2,3274.8,0.03238603]
[1736491144802,3.47640267,3275.2,3274.8,0.03238603]
[1736491145111,3.05334,3275.1,3274.9,0.02906587]
[1736491145491,3.05334,3275.1,3274.7,0.773]
[1736491145694,2.83280334,3275.2,3275.0,0.02906587]
[1736491145856,0.55,3275.2,3274.7,0.773]
[1736491146191,0.55,3275.2,3275.1,0.02906587]
[1736491146400,0.55,3275.2,3274.7,0.773]
[1736491146550,3.0,3275.5,3274.7,0.773]
[1736491146756,3.0,3275.5,3274.8,0.02906587]
[1736491147192,0.55,3275.4,3274.7,0.773]
[1736491147393,0.55,3275.4,3274.7,1.155681]
[1736491147605,0.55,3275.4,3274.8,0.02918867]
[1736491148193,0.55,3275.4,3274.7,0.773]
[1736491148399,0.55,3275.4,3274.9,0.02918867]
[1736491148578,0.55,3275.4,3274.7,0.773]
[1736491148787,0.55,3275.4,3275.0,0.02918867]
[1736491149105,0.55,3275.4,3274.7,0.773]
[1736491149413,0.55,3275.4,3275.1,0.02918867]
[1736491149582,0.55,3275.4,3274.7,0.773]
[1736491149777,0.55,3275.5,3275.3,0.7766]
[1736491150001,5.28,3275.6,3275.3,0.7766]
[1736491150315,3.55,3275.8,3275.4,0.02936318]
[1736491150654,3.55,3275.8,3275.3,0.7766]
[1736491151120,3.55,3275.8,3275.4,0.02936318]
[1736491151322,0.55,3275.6,3275.3,0.7766]
[1736491151618,3.603,3275.5,3274.7,0.8285]
[1736491152162,3.603,3275.5,3274.8,0.02936318]
[1736491152364,0.55,3275.5,3274.9,0.8213]
[1736491152613,3.0,3275.8,3274.9,0.8213]
[1736491152967,0.55,3275.7,3275.0,0.02936318]
[1736491153621,0.55,3275.8,3275.0,0.02936318]
[1736491154221,3.05239,3276.2,3275.1,0.85883172]
[1736491154399,3.05239,3276.2,3275.2,0.8283]
[1736491154623,3.05030334,3276.4,3275.2,0.8283]
[1736491154624,3.05030334,3276.4,3275.4,0.8283]
[1736491154825,3.05207,3276.5,3275.5,0.0305281]
[1736491155022,3.0,3276.4,3275.5,0.8283]
[1736491155345,3.0,3276.4,3275.6,0.02891727]
[1736491155479,0.55,3276.3,3275.7,0.7939]
[1736491156383,0.55,3276.5,3275.8,0.02891727]
[1736491156644,3.55,3276.3,3275.8,0.02891727]
[1736491156784,3.55,3276.3,3275.7,0.7939]
[1736491157485,0.55,3276.3,3275.8,0.02878159]
[1736491157686,0.55,3276.3,3275.7,0.7939]
[1736491157885,0.55,3276.3,3275.9,0.02878159]
[1736491158085,0.55,3276.3,3275.7,0.7939]
[1736491158321,0.55,3276.3,3276.0,0.02809659]
[1736491158523,0.55,3276.3,3275.7,0.7939]
[1736491158680,0.55,3276.3,3276.1,0.02809659]
[1736491158877,0.55,3276.3,3275.7,0.7939]
[1736491159105,0.55,3276.3,3276.2,0.02809659]
[1736491159339,0.55,3276.3,3275.7,0.7939]
[1736491159549,0.55,3276.3,3276.2,0.02809659]
[1736491159679,0.55,3276.3,3275.7,0.7939]
[1736491159884,0.55,3276.3,3276.2,0.02809659]
[1736491160113,0.55,3276.3,3275.7,0.7939]
[1736491160737,0.55,3276.3,3275.8,0.02809659]
[1736491160902,0.55,3276.3,3275.7,0.7939]
[1736491161102,0.55,3276.3,3275.9,0.02809659]
[1736491161422,0.55,3276.3,3275.7,0.7939]
[1736491161933,0.55,3276.3,3275.8,0.02809659]
[1736491162434,5.28,3276.6,3275.7,0.7939]
[1736491162435,0.55,3276.4,3275.7,0.7939]
[1736491162622,0.55,3276.4,3275.9,0.02809659]
[1736491162802,0.55,3276.5,3275.7,1.200885]
[1736491163002,0.55,3276.5,3276.0,0.02809659]
[1736491163208,0.55,3276.5,3275.7,0.7939]
[1736491163419,0.55,3276.5,3276.1,0.02809659]
[1736491163626,0.55,3276.3,3275.7,0.7939]
[1736491163984,0.55,3276.5,3275.8,0.02809659]
[1736491165688,0.55,3276.5,3275.9,0.8111]
[1736491165885,3.0,3276.9,3275.9,0.8111]
[1736491166187,2.28280334,3277.0,3276.1,0.8243]
[1736491166418,0.55,3276.9,3276.3,0.8243]
[1736491166948,0.55,3276.9,3276.4,0.02794156]
[1736491167100,0.55,3276.9,3276.3,0.8243]
[1736491167308,0.55,3276.9,3276.5,0.02794156]
[1736491167503,0.55,3276.9,3276.3,0.8243]
[1736491167805,0.55,3276.9,3276.6,0.02794156]
[1736491168018,0.55,3276.9,3276.3,0.8243]
[1736491168190,0.55,3276.9,3276.7,0.02794156]
[1736491168524,0.55,3276.9,3276.8,0.02794156]
[1736491168723,0.55,3276.9,3276.3,0.8243]
[1736491168934,0.55,3276.9,3276.8,0.02794156]
[1736491169098,0.55,3276.9,3276.3,0.8243]
[1736491169305,0.55,3276.9,3276.8,0.02794156]
[1736491169558,0.55,3276.9,3276.3,0.8243]
[1736491169992,6.81789,3277.2,3276.4,0.02794156]
[1736491170548,3.0,3277.2,3276.4,0.02794156]
[1736491170762,3.0,3277.2,3276.5,0.7613]
[1736491170960,0.55,3277.1,3276.5,0.7613]
[1736491171257,2.28280334,3277.0,3276.5,0.7613]
[1736491171964,0.55,3276.9,3275.6,3.0]
[1736491172245,4.42693,3276.9,3275.9,0.7635]
[1736491172595,0.55,3276.6,3275.9,0.7635]
[1736491172795,0.55,3276.6,3276.0,0.02747003]
[1736491177154,0.55,3276.3,3276.0,0.02747003]
[1736491177359,0.36148033,3276.2,3275.9,0.7635]
[1736491177533,0.55,3276.3,3275.9,0.7635]
[1736491177845,0.55,3276.3,3275.7,0.8191]
[1736491178249,0.55,3276.1,3275.7,0.8191]
[1736491179296,0.55,3276.0,3275.1,0.7761]
[1736491179501,0.55,3275.8,3275.1,0.7761]
[1736491179715,0.55,3275.6,3275.1,0.7761]
[1736491179916,3.60289,3275.6,3275.1,0.7761]
[1736491180203,0.55,3275.6,3275.1,0.7761]
[1736491184264,5.28280334,3275.8,3275.1,0.7761]
[1736491185428,5.28,3275.9,3275.1,0.7761]
[1736491185606,5.28,3275.9,3275.2,0.382944]
[1736491186005,5.28,3275.9,3275.3,0.7996]
[1736491187961,5.88553334,3275.8,3275.3,0.7996]
[1736491188164,0.55,3275.6,3275.3,0.7996]
[1736491188960,1.13856033,3275.6,3275.0,0.7538]
[1736491189654,4.19143033,3275.6,3275.0,0.7538]
[1736491190510,3.60287,3275.6,3275.0,0.7538]
[1736491191727,3.60287,3275.6,3275.1,0.02712655]
[1736491192057,0.55,3275.7,3275.1,0.02712655]
[1736491196081,0.55,3275.5,3275.1,0.02712655]
[1736491196370,0.55,3275.5,3275.2,0.02712655]
[1736491196569,0.55,3275.5,3275.0,0.7538]
[1736491196780,0.55,3275.5,3275.3,0.02712655]
[1736491196925,0.55,3275.5,3275.0,0.7538]
[1736491197268,0.55,3275.5,3275.4,0.02712655]
[1736491197579,0.910288,3275.5,3275.0,0.7538]
[1736491197868,0.55,3275.5,3275.4,0.02712655]
[1736491198170,0.55,3275.5,3275.0,0.7538]
[1736491198352,0.55,3275.5,3275.4,0.02712655]
[1736491198550,0.55,3275.5,3275.0,0.7538]
[1736491198749,0.55,3275.5,3275.4,0.02712655]
[1736491198955,0.910288,3275.5,3275.0,0.7538]
[1736491199158,0.55,3275.5,3275.4,0.02712655]
[1736491199324,0.55,3275.5,3275.0,0.7538]
[1736491199727,0.55,3275.5,3275.4,0.02712655]
[1736491199884,0.55,3275.5,3275.0,0.7538]
[1736491200391,0.55,3275.5,3274.8,0.223]
[1736491200392,3.60324,3275.2,3275.1,0.02712655]
[1736491200602,0.55,3275.1,3274.8,0.7546]
[1736491201307,3.60308,3275.4,3274.8,0.7546]
[1736491203014,0.55,3275.4,3274.8,0.7546]
[1736491207631,3.60324,3275.2,3274.8,0.7546]
[1736491207840,0.58860433,3275.1,3274.5,0.976]
[1736491207986,3.60324,3275.2,3274.5,0.976]
[1736491208184,2.28280334,3275.3,3274.6,0.0280049]
[1736491208427,6.0681,3275.1,3274.6,0.0280049]
[1736491208636,0.55,3274.7,3274.6,0.0280049]
[1736491208935,0.55,3274.9,3274.3,0.223]
[1736491209274,5.28,3275.1,3274.4,0.7667]
[1736491210833,5.28,3275.1,3274.6,0.8078]
[1736491211403,5.28,3275.1,3274.7,0.02839899]
[1736491213232,3.55,3275.3,3274.7,0.02839899]
[1736491214517,5.83280334,3275.3,3274.7,0.02839899]
[1736491214685,1.336,3274.9,3274.3,1.0173]
[1736491214898,1.336,3274.9,3274.4,0.02732524]
[1736491215300,0.55,3274.7,3274.4,0.02732524]
[1736491215835,0.55,3274.7,3274.3,0.7943]
[1736491216036,0.55,3274.4,3273.5,0.772]
[1736491216249,5.28,3274.6,3273.8,0.772]
[1736491216403,5.28,3274.6,3273.9,0.80254115]
[1736491216601,3.05336,3275.1,3274.2,0.772]
[1736491216846,0.55,3275.0,3274.2,0.772]
[1736491217043,0.55,3275.0,3274.4,0.772]
[1736491217745,3.55,3275.1,3274.6,0.772]
[1736491218541,3.55,3275.1,3274.7,0.02743504]
[1736491219052,3.55,3275.1,3274.6,0.772]
[1736491219420,3.55,3275.1,3274.7,0.02743504]
[1736491219639,0.55,3274.9,3274.7,0.02743504]
[1736491220020,0.55,3275.0,3274.6,0.772]
[1736491220551,8.33324,3275.2,3274.7,0.02743504]
[1736491221303,5.28,3275.2,3274.7,0.02743504]
[1736491221499,0.55,3275.1,3274.7,0.02743504]
[1736491221816,0.55,3274.9,3274.7,0.02743504]
[1736491222004,8.33328,3275.2,3274.7,0.02743504]
[1736491222207,8.33328,3275.2,3274.6,0.772]
[1736491222440,5.28,3275.2,3274.6,0.772]
[1736491222873,0.55,3275.1,3274.7,0.02737691]
[1736491225954,5.28,3275.2,3274.7,0.02737691]
[1736491226169,7.56280334,3275.9,3274.8,0.79163432]
[1736491226373,7.56280334,3275.9,3274.9,0.799]
[1736491226521,3.0,3275.8,3275.0,0.39104777]
[1736491226716,0.55,3275.7,3275.0,0.41843112]
[1736491227863,0.55,3275.8,3275.1,0.8224]
[1736491228169,5.28,3275.9,3275.2,0.8224]
[1736491228350,5.28,3275.9,3275.3,0.39062621]
[1736491228670,5.28,3275.9,3275.4,0.8224]
[1736491228871,5.28,3275.9,3275.4,0.84953796]
[1736491229361,0.55,3275.8,3275.4,0.84953796]
[1736491230581,3.60271,3275.8,3275.4,0.84953796]
[1736491230761,4.71926133,3275.8,3275.4,0.8224]
[1736491231630,1.66655133,3275.8,3275.4,0.8224]
[1736491231830,0.55,3275.8,3275.4,0.8224]
[1736491232061,0.55,3275.8,3275.5,0.02700883]
[1736491232638,0.55,3275.8,3275.5,0.07860066]
[1736491233280,5.28,3275.9,3275.5,0.07860066]
[1736491233433,3.05241,3276.1,3275.5,0.07860066]
[1736491234300,0.55,3276.1,3275.5,0.07860066]
[1736491234464,0.55,3276.1,3275.6,0.8114]
[1736491234860,7.56280334,3276.2,3275.6,0.8114]
[1736491234861,5.28,3276.2,3275.7,0.07856194]
[1736491236500,5.28,3276.2,3275.8,0.7592]
[1736491236702,5.28,3276.2,3275.9,0.7592]
[1736491236904,5.28,3276.2,3275.9,1.14823719]
[1736491237055,5.28,3276.2,3276.0,0.0778711]
[1736491239909,5.28,3276.2,3275.9,0.7592]
[1736491240190,3.55,3276.6,3275.9,0.7592]
[1736491240395,0.55,3276.6,3276.0,0.0778711]
[1736491241893,3.60194,3276.6,3276.0,0.0778711]
[1736491245649,0.55,3276.4,3276.0,0.0778711]
[1736491246027,0.55,3276.4,3275.9,0.7592]
[1736491249859,0.55,3276.4,3276.0,0.07778077]
[1736491250267,6.05188,3276.7,3275.9,0.7592]
[1736491251365,0.55,3276.6,3275.9,1.140394]
[1736491251566,0.55,3276.6,3276.0,0.88428077]
[1736491252563,2.28280334,3276.5,3276.0,0.88428077]
[1736491254822,0.55,3276.6,3276.0,0.88428077]
[1736491258780,3.60199,3276.6,3276.0,0.88428077]
[1736491261754,0.55,3276.4,3276.0,0.88428077]
[1736491261970,0.55,3276.2,3276.0,0.8065]
[1736491262196,3.60232,3276.2,3275.9,0.223]
[1736491263490,3.60232,3276.2,3275.7,0.7956]
[1736491263702,5.88512334,3276.2,3275.5,0.7728]
[1736491263839,5.88512334,3276.2,3275.8,0.0778711]
[1736491264044,0.66509233,3276.1,3275.5,0.7728]
[1736491264277,5.88512334,3276.2,3275.5,0.7728]
[1736491264592,5.88512334,3276.2,3275.6,0.07775491]
[1736491266050,2.83280334,3276.2,3275.6,0.07775491]
[1736491267275,7.56280334,3276.5,3275.7,0.787]
[1736491267661,5.28,3276.5,3275.8,0.787]
[1736491267860,5.28,3276.5,3276.0,0.7887]
[1736491268452,2.28280334,3276.6,3276.1,0.07790338]
[1736491268953,0.55,3276.5,3276.1,0.07790338]
[1736491269147,0.55,3276.5,3276.0,0.7887]
[1736491269544,3.60205,3276.5,3276.0,0.7887]
[1736491269789,3.60205,3276.5,3276.1,0.07790338]
[1736491270293,0.55,3276.5,3276.1,0.07790338]
[1736491274881,2.28280334,3276.6,3276.1,0.07790338]
[1736491275296,0.55,3276.7,3276.1,0.07790338]
[1736491276615,0.55,3276.7,3276.0,0.7887]
[1736491276817,0.55,3276.7,3276.0,1.172837]
[1736491277137,0.55,3276.7,3276.1,0.07527515]
[1736491278624,0.55,3276.7,3276.2,0.8143]
[1736491279231,0.55,3276.7,3276.3,0.07527515]
[1736491279746,0.55,3276.7,3276.2,0.8143]
[1736491279893,0.55,3276.7,3276.4,0.07527515]
[1736491280092,0.55,3276.7,3276.2,0.8143]
[1736491280288,0.55,3276.7,3276.5,0.07527515]
[1736491280532,0.55,3276.7,3276.2,0.8143]
[1736491281044,0.55,3276.7,3276.3,0.07527515]
[1736491281394,0.55,3276.7,3276.2,0.8143]
[1736491281598,0.55,3276.7,3276.4,0.07527515]
[1736491281902,0.55,3276.7,3276.2,0.8143]
[1736491282442,0.55,3276.7,3276.3,0.07527515]
[1736491282990,0.55,3276.7,3276.4,0.07527515]
[1736491283480,0.55,3276.7,3276.2,0.8143]
[1736491283682,0.55,3276.7,3276.5,0.07527515]
[1736491283991,0.55,3276.7,3276.6,0.07527515]
[1736491284453,0.55,3276.7,3276.2,0.8143]
[1736491284895,0.55,3276.7,3276.3,0.07518481]
[1736491285241,0.55,3276.7,3276.2,0.8143]
[1736491285490,0.55,3276.7,3276.4,0.07518481]
[1736491285778,0.55,3276.7,3276.5,0.07518481]
[1736491286185,0.55,3276.7,3276.2,0.8143]
[1736491286392,0.55,3276.7,3276.6,0.07518481]
[1736491286597,0.55,3276.7,3276.2,0.8143]
[1736491286962,0.55,3276.7,3276.3,0.07518481]
[1736491287188,0.55,3276.7,3276.2,0.8143]
[1736491287495,0.55,3276.7,3276.4,0.07518481]
[1736491287670,0.55,3276.7,3276.2,0.8143]
[1736491287870,0.55,3276.7,3276.5,0.07518481]
[1736491288197,0.55,3276.7,3276.6,0.07518481]
[1736491288568,0.55,3276.7,3276.2,0.8143]
[1736491288794,0.55,3276.7,3276.3,0.07518481]
[1736491289150,0.55,3276.7,3276.2,0.8143]
[1736491289358,0.55,3276.7,3276.3,0.07518481]
[1736491289671,0.55,3276.7,3276.2,0.8143]
[1736491289871,0.55,3276.7,3276.4,0.07518481]
[1736491290070,0.55,3276.7,3276.2,0.8143]
[1736491290310,0.55,3276.7,3276.5,0.07518481]
[1736491290457,0.55,3276.7,3276.2,0.8143]
[1736491290657,0.55,3276.7,3276.6,0.07518481]
[1736491290891,0.55,3276.7,3276.2,0.8143]
[1736491291399,0.55,3276.7,3276.3,0.07518481]
[1736491291603,0.55,3276.7,3276.2,0.8143]
[1736491291806,0.55,3276.7,3276.4,0.07518481]
[1736491292102,0.55,3276.7,3276.2,0.8143]
[1736491292305,0.55,3276.7,3276.5,0.07518481]
[1736491292475,0.55,3276.7,3276.2,0.8143]
[1736491292676,0.55,3276.7,3276.6,0.07518481]
[1736491292877,0.55,3276.7,3276.2,0.8143]
[1736491293275,0.55,3276.7,3276.3,0.07518481]
[1736491293700,0.55,3276.7,3276.2,0.8143]
[1736491293901,0.55,3276.7,3276.4,0.07518481]
[1736491294211,0.55,3276.7,3276.5,0.07518481]
[1736491294722,0.55,3276.7,3276.2,0.8143]
[1736491295176,0.55,3276.7,3276.3,0.07267865]
[1736491295359,1.07557156,3276.4,3276.3,0.07267865]
[1736491295555,1.07557156,3276.4,3276.0,0.8118]
[1736491295802,1.07557156,3276.4,3276.1,0.07267865]
[1736491299101,1.07557156,3276.6,3276.1,0.07267865]
[1736491300206,0.62474959,3277.2,3276.1,0.07267865]
[1736491300412,1.89257156,3277.1,3276.3,0.7885]
[1736491300610,1.45588389,3278.0,3276.4,0.81901732]
[1736491300611,0.817,3277.8,3276.4,0.81901732]
[1736491300907,1.07557156,3277.5,3276.8,0.7885]
[1736491301208,1.07557156,3277.7,3277.0,0.7899]
[1736491301419,3.02607316,3278.0,3277.2,0.7899]
[1736491301777,3.02607316,3278.0,3277.3,0.07234302]
[1736491303417,0.55,3277.9,3277.3,0.07234302]
[1736491304174,0.55,3278.0,3277.2,0.7899]
[1736491304424,0.55,3278.0,3277.3,0.07234302]
[1736491304607,0.55,3278.0,3277.3,0.46371332]
[1736491305184,2.82037316,3278.0,3277.3,0.07234302]
[1736491306515,3.64847316,3278.0,3277.3,0.07234302]
[1736491307433,1.3781,3278.0,3277.3,0.07234302]
[1736491312436,4.42875,3278.0,3277.3,0.07234302]
[1736491313839,0.55,3278.0,3277.4,0.8151]
[1736491314063,0.55,3278.0,3277.4,0.88657849]
[1736491314365,0.55,3278.0,3277.4,0.8151]
[1736491314519,0.55,3278.0,3277.5,0.07147849]
[1736491315069,0.55,3278.0,3277.4,0.8151]
[1736491315863,3.60066,3278.0,3277.4,0.8151]
[1736491316274,3.60066,3278.0,3277.5,0.07147849]
[1736491316763,4.39026,3278.0,3277.5,0.07147849]
[1736491320272,3.60066,3278.0,3277.5,0.07147849]
[1736491321825,2.27037316,3277.9,3277.5,0.07147849]
[1736491322024,2.27037316,3277.9,3277.4,0.8151]
[1736491323375,1.07479381,3277.6,3277.4,0.8151]
[1736491323725,1.07479381,3277.6,3277.5,0.07141399]
[1736491324027,1.07479381,3277.6,3277.4,0.8151]
[1736491324426,1.07479381,3277.8,3277.5,0.07141399]
[1736491324623,3.8698,3278.6,3277.6,0.7628]
[1736491324867,1.07479381,3278.3,3277.7,0.7628]
[1736491325268,1.07479381,3278.3,3277.9,0.7628]
[1736491325960,1.07479381,3278.3,3278.0,0.07076247]
[1736491326960,5.28,3278.7,3278.1,0.8167]
[1736491327277,0.55,3278.5,3278.1,0.8167]
[1736491327569,0.55,3278.5,3278.2,0.07076247]
[1736491327752,3.0499,3278.8,3278.2,0.07076247]
[1736491327954,3.0499,3278.8,3278.1,0.8167]
[1736491328180,0.55,3278.7,3278.3,0.07054968]
[1736491328384,0.55,3278.7,3278.1,0.8167]
[1736491328524,0.55,3278.7,3278.4,0.07054968]
[1736491328874,5.26915537,3278.9,3278.5,0.84954968]
[1736491329080,0.55,3278.8,3278.5,0.84954968]
[1736491330548,3.5999,3278.8,3278.5,0.07054968]
[1736491330728,3.5999,3278.8,3278.3,0.7937]
[1736491331129,3.5999,3278.8,3278.4,0.07054968]
[1736491331130,2.81915537,3278.5,3278.4,0.07054968]
[1736491331567,0.55,3278.4,3278.0,0.7705]
[1736491331969,0.55,3278.4,3278.1,0.07054968]
[1736491332704,0.55,3278.4,3277.8,0.9935]
[1736491332830,0.55,3278.4,3278.2,0.06990495]
[1736491333176,0.55,3278.4,3277.8,0.9935]
[1736491333558,0.55,3278.6,3277.9,0.06998231]
[1736491333765,0.55,3278.6,3278.0,0.7781]
[1736491334059,0.55,3278.7,3278.1,0.06998231]
[1736491334262,0.55,3278.7,3278.2,0.7781]
[1736491334425,0.55,3278.8,3278.2,0.7781]
[1736491334992,0.55,3278.8,3278.3,0.06998231]
[1736491335366,0.55,3278.8,3278.2,0.7781]
[1736491335893,0.55,3278.8,3278.3,0.06984694]
[1736491336047,0.7866,3278.7,3278.3,0.06984694]
[1736491336250,3.60008,3278.6,3278.0,0.8108]
[1736491336787,3.60008,3278.6,3278.1,0.06984694]
[1736491337091,0.55,3278.6,3278.1,0.06984694]
[1736491337497,6.9801785,3279.0,3278.1,0.06984694]
[1736491337680,6.9801785,3279.0,3278.2,0.8108]
[1736491337887,6.9801785,3279.0,3278.2,0.88069206]
[1736491338053,0.55,3278.9,3278.2,0.8108]
[1736491339030,0.55,3278.9,3278.3,0.06989206]
[1736491341482,0.55,3278.9,3278.4,0.7864]
[1736491341663,0.1523585,3279.0,3278.7,0.0075]
[1736491341886,0.1523585,3279.0,3278.8,0.7864]
[1736491342064,0.1523585,3279.0,3278.9,0.405837]
[1736491342597,0.1523585,3279.0,3278.9,0.06973092]
[1736491349886,0.1523585,3279.0,3278.8,0.7864]
[1736491350395,0.1523585,3279.0,3278.9,0.06929269]
[1736491351068,0.1523585,3279.0,3278.8,0.7864]
[1736491351271,0.1523585,3279.0,3278.9,0.06929269]
[1736491353358,0.1523585,3279.0,3278.6,0.222]
[1736491353876,0.1523585,3279.0,3278.7,0.06929269]
[1736491356036,1.3157,3278.9,3278.7,0.06929269]
[1736491356174,6.63466537,3278.9,3278.7,0.06929269]
[1736491356374,6.63466537,3278.9,3278.3,0.222]
[1736491356807,6.63466537,3278.9,3278.4,0.06687983]
[1736491356975,6.63466537,3278.9,3278.2,0.7956]
[1736491357479,6.63466537,3278.9,3278.3,0.06687983]
[1736491358597,0.55,3278.7,3278.3,0.06687983]
[1736491358815,3.60001,3278.7,3278.1,0.222]
[1736491359023,0.55,3278.8,3278.1,0.222]
[1736491359181,0.55,3278.5,3278.2,0.06687983]
[1736491359386,3.05026,3278.4,3278.2,0.06687983]
[1736491359831,3.05026,3278.4,3277.8,0.222]